[Event "SixDays Budapest March GM-A 2023"]
[Site "Budapest"]
[Date "2023.03.27"]
[Round "5.4"]
[White "Bodi, Tibor"]
[Black "Pap, Misa"]
[Result "0-1"]
[ECO "A45"]
[WhiteElo "2356"]
[BlackElo "2403"]
[Annotator "TA"]
[PlyCount "44"]
[EventDate "2023.03.24"]
[EventType "tourn"]
[EventCountry "HUN"]
[SourceTitle "playchess.com"]
[Source "ChessBase"]
[SourceQuality "1"]
[TimeControl "5400+30"]

{[%evp 9,44,2,0,6,22,-15,0,0,0,0,7,-36,-25,-24,-49,-118,-108,-107,-43,-312,-327,-308,-304,-511,-513,-459,-341,-918,-561,-29976,-29975,-6499,-6499,-2627,-2586,-29991,-29992]} 1. d4 {[%emt 0:00:48]} Nf6 {[%emt 0:03:42]} 2. Bf4 {[%emt 0:01:45]} d6 {[%emt 0:00:33]} 3. Nf3 {[%emt 0:00:30]} c6 {[%emt 0:08:19]} 4. Nbd2 {[%emt 0:00:30]} Nh5 {[%emt 0:08:03]} 5. e3 {[%emt 0:04:11]} Nxf4 {[%emt 0:01:04]} 6. exf4 {[%emt 0:00:02] A46: 1 d4 Nf6 2 Nf3 e6: Torre, London and Colle Systems.} g6 {[%emt 0:00:08] [#]} 7. Bd3 $146 {[%emt 0:01:27]} ({Predecessor:} 7. c3 Nd7 8. Bd3 Bg7 9. O-O O-O 10. Re1 Nf6 11. a4 Qc7 12. a5 e6 13. g3 {0-1 Bohak,J (2192)-Audie,A (2260) VW-Cup10 Gr50 email 2017}) 7... Bg7 {[%emt 0:00:06]} 8. Qe2 {[%emt 0:00:30] The position is equal.} Na6 {[%emt 0:05:36]} 9. c3 {[%emt 0:00:51]} O-O {[%emt 0:00:06]} 10. O-O-O {[%emt 0:01:26]} c5 {[%emt 0:00:23]} 11. Bxa6 {[%emt 0:04:03]} bxa6 {[%emt 0:00:07]} 12. dxc5 {[%emt 0:00:07] [#]} (12. Nc4 $1 $15) 12... Qa5 $1 $17 {[%emt 0:00:55] ...Rb8 would be deadly.} 13. cxd6 {[%emt 0:14:30]} (13. Qxe7 $2 Qxa2 $19) 13... Be6 {[%emt 0:26:10]} ({Black should try} 13... Bxc3 $17 14. dxe7 (14. bxc3 Qxc3+ 15. Kb1 Bf5+ 16. Ne4 Rfb8+) 14... Re8) 14. Nb1 $2 {[%emt 0:02:55][%mdl 8192] Now White is beyond hope.} (14. dxe7 $15 Rfb8 15. Ne4 Qxa2 16. Qc2 (16. Nd4 Bd5 $17)) 14... Qxa2 $19 {[%emt 0:03:22]} ({Less strong is} 14... exd6 15. Rxd6 Qc5 16. Rhd1 $11 (16. Qxa6 Qxf2 17. Re1 Qxg2 $11) (16. Rxa6 $2 Bc4 $19)) 15. dxe7 {[%emt 0:01:15] [#]} Rfe8 {[%emt 0:06:11][%cal Bf8e8,Be8e7,Be7c7][%mdl 32]} 16. Ne1 $2 {[%emt 0:21:53]} ({Don't blunder} 16. Qe4 $2 Bf5 17. Rhe1 Rab8 $19) (16. Rd3) 16... Rxe7 {[%emt 0:14:44] Hoping for ...Rb8.} 17. Nd3 {[%emt 0:00:18]} Rb8 {[%emt 0:00:55]} 18. Rd2 $2 {[%emt 0:04:05]} (18. Rhe1 Rc7 19. Qd2) 18... Bf5 {[%emt 0:03:31] A strong pair of Bishops.} 19. Qf3 {[%emt 0:05:37] [#]} Bxc3 $1 {[%emt 0:04:20][%mdl 512]} 20. Nxc3 {[%emt 0:00:41]} Qa1+ {[%emt 0:00:13][%mdl 64] Skewer} 21. Nb1 {[%emt 0:00:11]} Rc7+ {[%emt 0:00:17]} 22. Rc2 {[%emt 0:00:32] [#]} Rxb2 $3 {[%emt 0:01:38][%mdl 576] Decoy, Back Rank. Magnificent play by Pap!   Weighted Error Value: White=1.64/Black=0.36} 0-1

[Event "SixDays Budapest March GM-A 2023"]
[Site "Budapest"]
[Date "2023.03.27"]
[Round "5.5"]
[White "Sammed Jaykumar, Shete"]
[Black "Arfan, Aditya Bagus"]
[Result "0-1"]
[ECO "B12"]
[WhiteElo "2454"]
[BlackElo "2374"]
[Annotator "TA"]
[PlyCount "88"]
[EventDate "2023.03.24"]
[EventType "tourn"]
[EventCountry "HUN"]
[SourceTitle "playchess.com"]
[Source "ChessBase"]
[SourceQuality "1"]
[TimeControl "5400+30"]

{[%evp 13,88,5,16,0,48,37,24,35,74,57,56,13,22,22,26,20,29,12,37,9,14,10,12,12,21,0,0,0,-3,-8,-13,-12,-16,-12,-14,-37,-20,-48,-47,-43,-38,-98,-87,-108,-111,-338,-333,-325,-337,-347,-343,-356,-311,-396,-389,-393,-393,-365,-350,-400,-375,-416,-405,-496,-395,-451,-450,-486,-480,-498,-468,-471,-458,-466,-464,-1687,-1653]} 1. e4 {[%emt 0:00:32]} c6 {[%emt 0:03:33]} 2. d4 {[%emt 0:00:09]} d5 {[%emt 0:00:59]} 3. e5 {[%emt 0:00:07]} Bf5 {[%emt 0:00:04]} 4. Nf3 {[%emt 0:00:05]} e6 {[%emt 0:00:05]} 5. Be2 {[%emt 0:00:05]} Ne7 {[%emt 0:00:04]} 6. O-O {[%emt 0:00:13]} c5 {[%emt 0:00:13]} 7. c4 {[%emt 0:04:11]} Nbc6 {[%emt 0:00:08]} 8. Na3 {[%emt 0:03:47] B12: Caro-Kann: Advance Variation.} dxc4 {[%emt 0:00:49] is the legacy move (8...a6).} (8... a6 $11 {was preferrable.}) 9. Nxc4 {[%emt 0:03:52]} (9. Bg5 $5 {[%cal Ra3c4]} Qd7 10. Nxc4 $14) 9... Nd5 {[%emt 0:00:50]} 10. Bg5 {[%emt 0:00:32] White has an edge.} Qc7 {[%emt 0:02:36]} 11. Rc1 {[%emt 0:00:40]} h6 {[%emt 0:19:02] [#]} 12. Nd6+ $146 {[%emt 0:00:25]} ({Predecessor:} 12. Bh4 cxd4 13. Nxd4 Nxd4 14. Qxd4 Bc5 15. Nd6+ Qxd6 16. Bb5+ Kf8 17. exd6 Bxd4 18. d7 {½-½ Jarmula,L (2498)-Cupid,K (2148) Titled Tuesday intern op 17th April blitz 2018 (1)}) 12... Bxd6 {[%emt 0:00:21]} 13. exd6 {[%emt 0:00:05]} Qxd6 {[%emt 0:04:02]} 14. dxc5 {[%emt 0:00:05]} Qc7 {[%emt 0:05:06]} 15. Bh4 {[%emt 0:01:54]} Nf4 {[%emt 0:07:40]} 16. Bc4 {[%emt 0:00:56]} g5 {[%emt 0:02:22] aiming for ...Rd8.} 17. Bg3 {[%emt 0:01:55]} Rd8 {[%emt 0:03:03][%cal Ba8d8,Bd8d4,Bd4f4][%mdl 32] Against Qd6} 18. Qb3 {[%emt 0:00:19]} O-O {[%emt 0:00:50]} 19. Qc3 {[%emt 0:10:36]} Be4 {[%emt 0:18:14]} 20. Rfe1 {[%emt 0:14:31]} Bxf3 {[%emt 0:03:01]} 21. Qxf3 {[%emt 0:00:05]} Rd4 {[%emt 0:00:47]} 22. Bf1 {[%emt 0:02:45]} Rfd8 {[%emt 0:00:26][%cal Bf8d8,Bd8d5,Bd5d2][%mdl 32]} 23. a3 {[%emt 0:03:19]} a5 {[%emt 0:02:38]} 24. b3 {[%emt 0:04:32]} R8d5 {[%emt 0:00:31]} 25. Qc3 {[%emt 0:03:40]} Qd8 {[%emt 0:03:41]} 26. Bxf4 {[%emt 0:01:44]} Rxf4 {[%emt 0:01:01]} 27. g3 {[%emt 0:01:53] [#]} ({Better is} 27. Re3 $15) 27... Rff5 $1 $17 {[%emt 0:05:14]} 28. b4 {[%emt 0:06:13] [#]} Rd2 $1 {[%emt 0:09:38]} 29. b5 $2 {[%emt 0:11:14] Now White is beyond hope.} (29. Re2 $17 Rd3 {[%mdl 64] Deflection} 30. Qc4) 29... Rfxf2 $19 {[%emt 0:01:12]} 30. Qe3 {[%emt 0:02:44]} (30. bxc6 Qd5 $19) 30... Nd4 {[%emt 0:01:27][%cal Bc6d4,Bd4b3,Bb3c5][%mdl 32] ( -> ...Nf3+)} 31. Qxf2 {[%emt 0:01:05]} Rxf2 {[%emt 0:00:02]} 32. Kxf2 {[%emt 0:00:05]} Nb3 {[%emt 0:01:56]} ({Not} 32... Qd5 $2 33. Bg2 Qa2+ 34. Kf1 Nxb5 35. Ra1 Qc4+ 36. Kg1 $19) ({Don't blunder} 32... Qf6+ $2 33. Kg2 Nb3 34. Rc4 $19) 33. Rcd1 {[%emt 0:12:05] Inhibits Qd2+.} Qf6+ {[%emt 0:00:07]} 34. Kg1 {[%emt 0:00:03]} Nxc5 {[%emt 0:00:36]} 35. Re3 {[%emt 0:00:06]} Qb2 {[%emt 0:00:52]} 36. Be2 {[%emt 0:00:16]} Kf8 {[%emt 0:00:54]} 37. g4 {[%emt 0:02:29]} Ke7 {[%emt 0:00:17]} 38. Kf2 {[%emt 0:00:08]} Qc2 {[%emt 0:01:25]} 39. Rd4 {[%emt 0:00:42] And now Rc4 would win.} b6 {[%emt 0:00:39] Black is clearly winning.} 40. h3 {[%emt 0:00:23]} Qb2 {[%emt 0:00:16]} 41. Rd1 {[%emt 0:00:18]} Na4 {[%emt 0:00:22]} 42. Rdd3 {[%emt 0:02:16]} Qxb5 {[%emt 0:00:24]} ({Wrong is} 42... Nc5 $2 43. Rd1 $19) 43. Rd4 {[%emt 0:00:12]} Qc6 {[%emt 0:00:17]} 44. Rb3 {[%emt 0:01:29]} (44. Rc4 $142 Nc5 45. Rd4) 44... Qc5 {[%emt 0:00:25] Weighted Error Value: White=0.45/Black=0.10 (very precise)} 0-1

[Event "SixDays Budapest March GM-A 2023"]
[Site "Budapest"]
[Date "2023.03.27"]
[Round "6.1"]
[White "Rosh Jain"]
[Black "Arfan, Aditya Bagus"]
[Result "0-1"]
[ECO "B11"]
[WhiteElo "2325"]
[BlackElo "2374"]
[Annotator "TA"]
[PlyCount "104"]
[EventDate "2023.03.24"]
[EventType "tourn"]
[EventCountry "HUN"]
[SourceTitle "playchess.com"]
[Source "ChessBase"]
[SourceQuality "1"]
[TimeControl "5400+30"]

{[%evp 10,104,18,8,29,41,41,41,42,20,20,27,29,27,29,20,12,12,28,12,26,9,10,0,0,0,8,-10,-11,-18,-6,-9,-9,-21,-26,-21,-10,-12,-10,-9,-9,-12,-15,-27,-22,-23,-23,-34,-22,-52,-36,-36,-28,-64,-61,-61,-62,-61,-61,-61,-61,-62,-62,-67,-68,-62,-62,-63,-63,-145,-145,-145,-97,-1141,-1141,-1096,-1083,-977,-269,-172,-172,-620,-628,-619,-608,-29988,-29989,-29989,-29990,-29989,-29990,-29992,-29993,-29993,-29994,-29994,-29985]} 1. e4 {[%emt 0:00:31]} c6 {[%emt 0:02:03]} 2. Nc3 {[%emt 0:00:11]} d5 {[%emt 0:00:02]} 3. Nf3 {[%emt 0:00:08]} Bg4 {[%emt 0:00:06]} 4. h3 {[%emt 0:00:10]} Bxf3 {[%emt 0:00:54]} 5. Qxf3 {[%emt 0:00:04]} e6 {[%emt 0:00:05]} 6. Be2 {[%emt 0:00:19]} Nd7 {[%emt 0:00:14] B11: Caro-Kann: Two Knights Variation.} 7. d4 {[%emt 0:00:32]} dxe4 {[%emt 0:00:33]} 8. Nxe4 {[%emt 0:00:04]} Ngf6 {[%emt 0:00:08] White is slightly better.} 9. O-O {[%emt 0:00:09]} Nxe4 {[%emt 0:00:02]} 10. Qxe4 {[%emt 0:00:05]} Nf6 {[%emt 0:00:03]} 11. Qd3 {[%emt 0:00:07]} Bd6 {[%emt 0:00:20]} 12. Bg5 {[%emt 0:00:34]} O-O {[%emt 0:00:07] [#]} 13. Rad1 $146 {[%emt 0:00:15]} ({Predecessor:} 13. c4 Be7 14. Rad1 Qc7 15. Qe3 Rad8 16. a3 Rfe8 17. Bf3 b5 18. Rc1 Qb6 19. Qb3 {1-0 Dimitrov,R (2437)-Chunchukov,I (1777) Plovdiv Tringov Memorial 34th 2012 (1)}) 13... h6 {[%emt 0:02:04]} 14. Bh4 {[%emt 0:00:26]} Re8 {[%emt 0:00:46]} 15. Qf3 {[%emt 0:00:23]} Be7 {[%emt 0:02:10]} (15... Bc7 {seems wilder.} 16. Rfe1 Qd6 17. Bd3 Qd5) 16. Bxf6 {[%emt 0:00:30]} Bxf6 {[%emt 0:00:03]} 17. c3 {[%emt 0:01:27]} Qb6 {[%emt 0:00:57]} 18. b3 {[%emt 0:01:15]} Rad8 {[%emt 0:00:49]} 19. Bd3 {[%emt 0:00:54]} Qa5 {[%emt 0:05:11]} 20. Bb1 {[%emt 0:00:07]} Rd7 {[%emt 0:09:58]} 21. Rd3 {[%emt 0:05:56]} Red8 {[%emt 0:00:25]} 22. Rfd1 {[%emt 0:01:10]} c5 {[%emt 0:06:22]} 23. dxc5 {[%emt 0:01:15]} Rxd3 {[%emt 0:00:11]} 24. Rxd3 {[%emt 0:00:33]} Rxd3 {[%emt 0:00:34]} 25. Qxd3 {[%emt 0:02:04]} Qxc5 $11 {[%emt 0:01:47][%mdl 4096] Endgame KQB-KQB} (25... Qxc3 {simplifies} 26. Qxc3 Bxc3 27. Be4 Bb4) 26. c4 {[%emt 0:00:14]} g6 {[%emt 0:01:44] Active counter play!} 27. Qe3 {[%emt 0:00:30]} Bd4 {[%emt 0:00:37]} 28. Qe2 {[%emt 0:00:34]} Kg7 {[%emt 0:00:41]} 29. Bd3 {[%emt 0:01:55]} Qd6 {[%emt 0:02:12]} 30. Be4 {[%emt 0:02:30]} b6 {[%emt 0:00:10]} 31. Qf3 {[%emt 0:04:42]} Qa3 {[%emt 0:01:10]} 32. Qd1 {[%emt 0:01:20] Against Qc1} Qb2 {[%emt 0:00:48]} 33. Qc2 {[%emt 0:02:06]} Qa1+ {[%emt 0:00:19]} 34. Qb1 $1 {[%emt 0:00:14]} Qc3 {[%emt 0:00:09] White must now prevent ...Qd2.} 35. Kf1 {[%emt 0:01:33]} f5 {[%emt 0:00:01]} 36. Bd3 {[%emt 0:01:34]} Bc5 {[%emt 0:02:47]} 37. g3 {[%emt 0:07:32]} Qd4 {[%emt 0:04:48][%csl Gc5][%cal Rd4f2]} 38. Qc2 {[%emt 0:00:09]} e5 $36 {[%emt 0:01:21][%cal Be6e5,Be5e4][%mdl 2080] ...e4 is the strong threat. Black is more active.} 39. Kg2 {[%emt 0:01:39]} (39. Qe2 $15) 39... e4 $17 {[%emt 0:00:12]} 40. Bf1 {[%emt 0:00:05]} g5 {[%emt 0:01:56]} (40... a5 $142 {Threatens to win with ...g5.} 41. Qe2 g5) 41. a3 $2 {[%emt 0:08:09][%mdl 8192] [#] Now White is beyond hope.} f4 $1 $19 {[%emt 0:05:03]} ({Not} 41... Bxa3 42. Qa2 Qb2 43. Qxb2+ Bxb2 44. f3 $17) 42. b4 {[%emt 0:04:24] [#]} f3+ $1 {[%emt 0:00:44]} 43. Kg1 {[%emt 0:00:19]} Bd6 $2 {[%emt 0:00:08]} (43... e3 {( -> ...e2)} 44. Qf5 e2 {[%mdl 64] Trapped Piece} 45. Qxf3 e1=Q 46. bxc5 Qxc4 47. Qb7+ Kg6 48. Qc6+ Qce6 49. Qxe6+ Qxe6 50. cxb6 axb6) 44. Kh1 {[%emt 0:03:00]} Kf6 {[%emt 0:03:37]} 45. Kg1 $2 {[%emt 0:08:11]} (45. c5 bxc5 46. Qa2) 45... Bxg3 {[%emt 0:03:39]} 46. c5 {[%emt 0:01:22]} Bb8 {[%emt 0:00:22]} 47. Qa4 {[%emt 0:06:17] Strongly threatening Qc6+.} Qe5 {[%emt 0:00:51][%csl Gb8][%cal Re5h2] Black mates.} 48. Qc6+ {[%emt 0:00:08]} Ke7 {[%emt 0:00:46][%csl Gb8][%cal Re5h2]} 49. Qb7+ {[%emt 0:00:05]} Bc7 {[%emt 0:00:27][%csl Gc7][%cal Re5h2]} 50. Bg2 {[%emt 0:00:12]} Qh2+ {[%emt 0:00:10]} 51. Kf1 {[%emt 0:00:05]} fxg2+ {[%emt 0:00:05]} 52. Ke2 {[%emt 0:00:03]} g1=Q {[%emt 0:00:08] Weighted Error Value: White=0.44/Black=0.11 (very precise)} 0-1

[Event "SixDays Budapest March GM-A 2023"]
[Site "Budapest"]
[Date "2023.03.27"]
[Round "6.2"]
[White "Pap, Misa"]
[Black "Sammed Jaykumar, Shete"]
[Result "1/2-1/2"]
[ECO "B30"]
[WhiteElo "2403"]
[BlackElo "2454"]
[Annotator "TA"]
[PlyCount "37"]
[EventDate "2023.03.24"]
[EventType "tourn"]
[EventCountry "HUN"]
[SourceTitle "playchess.com"]
[Source "ChessBase"]
[SourceQuality "1"]
[TimeControl "5400+30"]

{[%evp 13,24,29,14,10,1,8,3,2,14,-26,-22,-13,-15]} 1. e4 {[%emt 0:09:57]} c5 {[%emt 0:00:33]} 2. Nf3 {[%emt 0:01:27]} Nc6 {[%emt 0:00:12]} 3. c3 {[%emt 0:00:08]} Nf6 {[%emt 0:02:41]} 4. e5 {[%emt 0:00:05]} Nd5 {[%emt 0:00:04]} 5. Bc4 {[%emt 0:02:09][%cal Bf1c4,Bc4b3,Bb3c2][%mdl 32]} Nb6 {[%emt 0:00:10]} 6. Bb3 {[%emt 0:00:04]} c4 {[%emt 0:01:19]} 7. Bc2 {[%emt 0:00:01]} g6 {[%emt 0:01:26]} 8. O-O {[%emt 0:03:27] B22: Sicilian: 2 c3.} Bg7 {[%emt 0:01:03]} 9. Re1 {[%emt 0:01:10] 9.Qe2 is the fancy move.} d6 {[%emt 0:02:13]} 10. exd6 {[%emt 0:00:10]} Qxd6 {[%emt 0:00:06]} 11. d4 {[%emt 0:02:21]} cxd3 {[%emt 0:00:20]} 12. Qxd3 {[%emt 0:00:05]} Qxd3 {[%emt 0:02:53] [#] An uneventful encounter.   Weighted Error Value: White=0.11 (very precise) /Black=0.00 (flawless)} {Predecessor:} 13. Bxd3 $146 O-O 14. Be3 Na4 15. Bb5 Nxb2 16. Bc1 a6 17. Bxc6 Nd3 18. Rd1 Nxc1 19. Bxb7 {0-1 Wosztyl,E-Kolanek,R (2279) POL-ch66 q-MZP3 email 2019} 1/2-1/2

[Event "SixDays Budapest March GM-A 2023"]
[Site "Budapest"]
[Date "2023.03.27"]
[Round "6.3"]
[White "Horvath, Adam"]
[Black "Bodi, Tibor"]
[Result "1/2-1/2"]
[ECO "C50"]
[WhiteElo "2458"]
[BlackElo "2356"]
[Annotator "TA"]
[PlyCount "86"]
[EventDate "2023.03.24"]
[EventType "tourn"]
[EventCountry "HUN"]
[SourceTitle "playchess.com"]
[Source "ChessBase"]
[SourceQuality "1"]
[TimeControl "5400+30"]

{[%evp 17,86,64,63,31,40,27,39,36,25,0,77,59,63,60,64,43,60,35,61,44,55,22,12,0,12,-56,-57,-50,-51,-129,-114,-132,-31,-117,-48,-62,-32,-27,0,-88,-87,-89,-93,-109,-55,-63,-62,-129,-145,-129,10,14,184,180,143,-168,-174,-170,-155,-175,-161,-155,-109,-104,-88,-93,-75,-77,-82,-94,-77]} 1. e4 {[%emt 0:00:47]} Nc6 {[%emt 0:00:33]} 2. Nf3 {[%emt 0:00:09]} e5 {[%emt 0:00:50]} 3. Bc4 {[%emt 0:00:10]} Bc5 {[%emt 0:00:13]} 4. d3 {[%emt 0:00:11]} Nf6 {[%emt 0:00:16]} 5. O-O {[%emt 0:00:07]} d6 {[%emt 0:00:25]} 6. c3 {[%emt 0:00:14]} Qe7 {[%emt 0:06:20]} 7. b4 {[%emt 0:07:55]} Bb6 {[%emt 0:00:06]} 8. a4 {[%emt 0:00:05]} a5 {[%emt 0:00:39]} 9. b5 {[%emt 0:00:06]} Nd8 {[%emt 0:00:19]} 10. Re1 {[%emt 0:09:42] C54: Giuoco Piano: 4 c3 Nf6, main lines with 5 d4 and 5 d3.} Bg4 {[%emt 0:01:43]} 11. Nbd2 {[%emt 0:00:25][%cal Bb1d2,Bd2f1,Bf1g3][%mdl 32]} Ne6 {[%emt 0:00:38]} 12. Nf1 {[%emt 0:00:19] [#] White is slightly better.} O-O-O $146 {[%emt 0:06:38]} ({Predecessor:} 12... O-O 13. Ng3 Rae8 14. h3 Bxf3 15. Qxf3 Nd7 16. Nf5 Qf6 17. Qg3 Qg6 18. Qh4 Qf6 {1-0 Biryukova,A-Jacobsen,C Wch U12 Girls 2009 (9)}) 13. Be3 {[%emt 0:10:47]} Nc5 {[%emt 0:08:40]} (13... Nd7 $1 $11 {remains equal.}) 14. h3 $16 {[%emt 0:09:04]} Bh5 {[%emt 0:02:38]} 15. Ng3 {[%emt 0:14:03]} Bg6 {[%emt 0:00:21]} 16. Qd2 {[%emt 0:09:38]} Kb8 {[%emt 0:00:43]} 17. Qa2 {[%emt 0:00:52]} Qd7 {[%emt 0:09:29]} 18. Rad1 {[%emt 0:06:26]} Rhe8 {[%emt 0:00:52]} 19. Qa3 {[%emt 0:13:32]} Qe7 {[%emt 0:02:08]} 20. Nh4 {[%emt 0:02:01]} d5 {[%emt 0:05:14]} 21. Nhf5 {[%emt 0:07:59]} (21. Nxg6 $11 hxg6 22. exd5) 21... Qf8 $15 {[%emt 0:00:17]} 22. exd5 {[%emt 0:00:23]} Nxd5 {[%emt 0:00:37]} 23. Bc1 {[%emt 0:04:06]} (23. Bxc5 $15 Bxc5 24. Qc1) 23... Ne7 $1 $17 {[%emt 0:07:09]} 24. Nxe7 {[%emt 0:00:51]} Rxe7 {[%emt 0:00:08]} (24... Bxd3 $17 25. Bxd3 Nxd3 26. Rxd3 Rxd3) 25. Be3 {[%emt 0:02:04]} ({White should play} 25. d4 $15 exd4 26. Rxe7 Qxe7 27. cxd4) 25... Red7 {[%emt 0:00:25]} (25... Nxd3 $17 26. Bxd3 Bxd3) 26. d4 $15 {[%emt 0:00:23]} h6 {[%emt 0:05:53][%cal Bh7h6,Bh6h5,Bh5h4][%mdl 32]} (26... f5 $5 {[%cal Rf5f4]} 27. f4 (27. dxc5 $2 Rxd1 28. Rxd1 Rxd1+ 29. Nf1 f4 $19) 27... exd4 28. Bxd4 Ne6 29. Qxf8 Nxf8 $15) 27. Kh2 {[%emt 0:00:39]} (27. dxc5 $2 Rxd1 28. Rxd1 Rxd1+ 29. Bf1 Re1 $19) 27... h5 {[%emt 0:10:33]} 28. f4 {[%emt 0:00:04]} (28. dxc5 $2 Rxd1 29. Rxd1 Rxd1 $19) (28. f3 $11 {keeps the balance.}) 28... h4 {[%emt 0:00:25]} 29. Ne2 {[%emt 0:00:55]} exd4 {[%emt 0:02:43]} 30. Nxd4 {[%emt 0:00:38]} Rd6 {[%emt 0:03:02]} (30... Qe7 $17 31. Bc1 Be4) 31. Bf2 {[%emt 0:00:24]} Qh8 $1 {[%emt 0:03:52]} 32. f5 {[%emt 0:00:49] [#]} (32. Be3 $15) 32... Bxf5 $1 $17 {[%emt 0:01:49][%mdl 576] Threatens to win with ...Ne4. Pin} 33. Re5 {[%emt 0:00:04]} (33. Nxf5 $2 {perishes.} Rxd1 34. Rxd1 Rxd1 $19) 33... Be6 {[%emt 0:06:10]} (33... Bc8 $17 {Hoping for ...Nd7.} 34. Rxc5 Rf6) 34. Rxc5 $11 {[%emt 0:00:31][%cal Oc4e6] And now Bxe6! would win.} Bxc5 $2 {[%emt 0:00:21]} (34... Qf8 $1 $11) 35. Qxc5 $18 {[%emt 0:00:04][%cal Od4e6] White wants to mate with Nxe6!} b6 {[%emt 0:00:18]} 36. Qe5 {[%emt 0:01:24][%mdl 8192] White is much more active.} (36. Nc6+ $16 {stays on course.} Ka8 37. Qe5 (37. Rxd6 Rxd6 38. Qe5 Bxc4 $11) 37... Bxc4 38. Qe7) 36... Bxc4 $19 {[%emt 0:00:20]} 37. Nc6+ {[%emt 0:00:35] [#]} Rxc6 $1 {[%emt 0:10:18]} 38. Rxd8+ {[%emt 0:00:05]} Qxd8 {[%emt 0:00:02]} 39. bxc6 {[%emt 0:00:05] KQB-KQB} f6 {[%emt 0:00:10]} ({Better is} 39... Kc8 40. Bd4 Bd5 41. Qf5+ Kb8) 40. Qf4 $17 {[%emt 0:00:31] Black is better.} Qd3 {[%emt 0:01:30]} 41. Qxh4 {[%emt 0:00:47] Qh8+ would be deadly.} Qd6+ {[%emt 0:00:08]} (41... Qxc3 $2 42. Qh8+ $18) 42. Bg3 {[%emt 0:00:05] Qh8+ would kill now.} Qxc6 {[%emt 0:01:00] ...Bf1 is the strong threat.} 43. Qh8+ {[%emt 0:00:03]} Kb7 {[%emt 0:00:29] Weighted Error Value: White=0.34/Black=0.23 (precise)} 1/2-1/2

[Event "SixDays Budapest March GM-A 2023"]
[Site "Budapest"]
[Date "2023.03.27"]
[Round "6.4"]
[White "Kushagra Mohan"]
[Black "Pfreundt, Jakob"]
[Result "0-1"]
[ECO "C02"]
[WhiteElo "2396"]
[BlackElo "2407"]
[Annotator "TA"]
[PlyCount "84"]
[EventDate "2023.03.24"]
[EventType "tourn"]
[EventCountry "HUN"]
[SourceTitle "playchess.com"]
[Source "ChessBase"]
[SourceQuality "1"]
[TimeControl "5400+30"]

{[%evp 17,84,-6,14,8,10,13,13,0,0,0,6,12,6,3,0,5,0,0,0,0,25,22,29,41,37,33,72,75,80,75,77,57,60,47,55,67,56,53,49,36,117,20,21,22,23,-8,-8,-16,-16,-8,-8,-28,0,0,0,0,0,0,0,-13,0,-91,-102,-89,-108,-128,-120,-1370,-1320]} 1. e4 e6 {[%emt 0:07:52]} 2. d4 {[%emt 0:03:16]} d5 {[%emt 0:00:04]} 3. e5 {[%emt 0:00:02]} c5 {[%emt 0:00:08]} 4. c3 {[%emt 0:00:03]} Nc6 {[%emt 0:00:07]} 5. Nf3 {[%emt 0:00:03]} Bd7 {[%emt 0:00:31]} 6. Be2 {[%emt 0:00:08]} Nge7 {[%emt 0:00:30]} 7. Na3 {[%emt 0:01:01]} cxd4 {[%emt 0:00:17]} 8. cxd4 {[%emt 0:00:08]} Nf5 {[%emt 0:00:12]} 9. Nc2 {[%emt 0:00:13]} Be7 {[%emt 0:00:17] is the new trend.} 10. O-O {[%emt 0:00:33] C02: French: Advance Variation.} O-O {[%emt 0:00:52]} 11. Bd3 {[%emt 0:00:44]} f6 {[%emt 0:00:27]} 12. Bf4 {[%emt 0:00:21] The position is equal.} fxe5 {[%emt 0:05:18]} 13. Nxe5 {[%emt 0:00:35]} Rc8 {[%emt 0:02:41]} 14. Nxc6 {[%emt 0:06:06]} Rxc6 {[%emt 0:05:12]} 15. Be5 {[%emt 0:00:51]} Be8 {[%emt 0:02:39]} 16. Bxf5 {[%emt 0:04:17]} Rxf5 {[%emt 0:02:16]} 17. Ne3 {[%emt 0:00:17]} Rf8 {[%emt 0:01:55]} 18. Qg4 {[%emt 0:02:27][%csl Ge5][%cal Rg4g7] [#]} Bg6 $146 {[%emt 0:14:39]} ({Predecessor:} 18... Bf6 19. Qg3 Bxe5 20. Qxe5 Qf6 21. Qxf6 gxf6 22. Rac1 Bd7 23. f4 Rfc8 24. Rcd1 Ra6 {1-0 Iskandarov,M (2601)-Lupulescu,C (2603) Geoagiu Bai Hunedoara op 2022 (4)}) 19. Rac1 {[%emt 0:02:03]} Qc8 {[%emt 0:09:01]} 20. Rxc6 {[%emt 0:00:11]} Qxc6 {[%emt 0:00:02]} 21. h4 {[%emt 0:01:37][%cal Bh2h4,Bh4h5][%mdl 32] Threatens to win with h5.} Rf7 {[%emt 0:07:29]} 22. h5 {[%emt 0:04:38]} Bf5 {[%emt 0:02:44]} 23. Nxf5 {[%emt 0:05:17]} exf5 {[%emt 0:00:06]} 24. Qf3 {[%emt 0:00:03]} Bg5 {[%emt 0:04:11]} 25. g3 {[%emt 0:00:43]} Qe6 {[%emt 0:01:56]} 26. Rd1 {[%emt 0:02:49]} Rf8 {[%emt 0:02:16]} 27. Rd3 {[%emt 0:00:21]} Rc8 {[%emt 0:00:46]} 28. Kg2 {[%emt 0:01:36]} Rc4 {[%emt 0:11:51]} ({Black should try} 28... b5 $14) 29. Ra3 {[%emt 0:02:27]} (29. Rb3 $1 $16 {[%cal Rb3b7]}) 29... a6 $11 {[%emt 0:01:48]} 30. Ra5 {[%emt 0:05:09]} b5 {[%emt 0:00:42]} 31. b3 {[%emt 0:06:39]} Rc8 {[%emt 0:02:55] ...Bd2 would be deadly.} 32. b4 $1 {[%emt 0:02:39]} Be7 {[%emt 0:02:41]} 33. Ra3 {[%emt 0:02:03][%cal Oh5h6,Ba5a3,Ba3e3,Be3e2][%mdl 32]} Bxb4 {[%emt 0:01:13]} 34. Re3 {[%emt 0:00:00][%cal Oe5g7] Strongly threatening Bxg7!} Qf7 {[%emt 0:00:28]} 35. h6 {[%emt 0:00:01]} g5 {[%emt 0:02:42]} 36. Bg7 {[%emt 0:04:36]} Bd6 {[%emt 0:00:09] Dodges Re5} 37. g4 {[%emt 0:01:27]} f4 {[%emt 0:01:31]} 38. Re2 {[%emt 0:00:54]} b4 {[%emt 0:00:15]} 39. Qb3 {[%emt 0:01:40] [#]} (39. Re1 $1 $11) 39... f3+ $1 $17 {[%emt 0:00:50][%mdl 64] Decoy} 40. Qxf3 {[%emt 0:00:40]} Qxf3+ {[%emt 0:00:02]} 41. Kxf3 {[%emt 0:00:01]} Rc3+ {[%emt 0:01:31]} 42. Re3 $2 {[%emt 0:01:09][%mdl 8192] [#]} (42. Kg2 $17 Kf7 43. Kf1 (43. Be5 Be7 $17)) 42... Bf4 $1 {[%emt 0:01:24][%mdl 64] Pin.   Weighted Error Value: White=0.29 (precise) /Black=0.07 (flawless)} 0-1